[Event "Early-Titled-Tuesday-Blitz-April-16-2024"]
[Site "Chess.com"]
[Date "2024.04.16"]
[Round "3"]
[White "MKlose11"]
[Black "DvaHrasta"]
[Result "0-1"]
[WhiteElo "2619"]
[BlackElo "2480"]
[TimeControl "180+1"]
[EndTime "8:30:20 PDT"]
[Termination "DvaHrasta won by resignation"]

1. e4 {[%clk 0:03:00.9]} 1... c6 {[%clk 0:02:59.4]} 2. Nc3 {[%clk 0:03:00]} 2...
d5 {[%clk 0:02:59.3]} 3. g3 {[%clk 0:02:58.8]} 3... d4 {[%clk 0:02:55.4]} 4.
Nce2 {[%clk 0:02:54.7]} 4... e5 {[%clk 0:02:55.2]} 5. d3 {[%clk 0:02:54.9]} 5...
Nf6 {[%clk 0:02:51.6]} 6. f4 {[%clk 0:02:54.8]} 6... Bg4 {[%clk 0:02:47.1]} 7.
Bg2 {[%clk 0:02:50.6]} 7... Bb4+ {[%clk 0:02:44.5]} 8. Bd2 {[%clk 0:02:50.2]}
8... Qa5 {[%clk 0:02:31.7]} 9. Nf3 {[%clk 0:02:48.9]} 9... Bxf3 {[%clk
0:02:28.5]} 10. Bxf3 {[%clk 0:02:48.5]} 10... Bxd2+ {[%clk 0:02:22.6]} 11. Qxd2
{[%clk 0:02:48.6]} 11... Qxd2+ {[%clk 0:02:21.9]} 12. Kxd2 {[%clk 0:02:49.5]}
12... Nbd7 {[%clk 0:02:20.9]} 13. Rhf1 {[%clk 0:02:43.1]} 13... c5 {[%clk
0:02:18.7]} 14. Bg2 {[%clk 0:02:42.4]} 14... Ke7 {[%clk 0:02:15.4]} 15. Bh3
{[%clk 0:02:42.4]} 15... b5 {[%clk 0:02:11]} 16. Rf2 {[%clk 0:02:39.5]} 16... a5
{[%clk 0:01:42]} 17. a4 {[%clk 0:02:35]} 17... bxa4 {[%clk 0:01:36.3]} 18. Rxa4
{[%clk 0:02:26]} 18... Rhb8 {[%clk 0:01:36.1]} 19. b3 {[%clk 0:02:26.1]} 19...
Rb4 {[%clk 0:01:36]} 20. Ra1 {[%clk 0:02:17.5]} 20... a4 {[%clk 0:01:36.2]} 21.
fxe5 {[%clk 0:02:11.2]} 21... Nxe5 {[%clk 0:01:26.1]} 22. bxa4 {[%clk
0:01:58.2]} 22... Raxa4 {[%clk 0:01:22.5]} 23. Rxa4 {[%clk 0:01:58.2]} 23...
Rxa4 {[%clk 0:01:22.7]} 24. Rf5 {[%clk 0:01:59.1]} 24... Nfd7 {[%clk 0:01:18.6]}
25. Nf4 {[%clk 0:01:56.9]} 25... c4 {[%clk 0:01:16.1]} 26. Nd5+ {[%clk
0:01:55.9]} 26... Kd6 {[%clk 0:01:11.1]} 27. dxc4 {[%clk 0:01:40.1]} 27... Nxc4+
{[%clk 0:01:09.5]} 28. Kd3 {[%clk 0:01:34.2]} 28... Nce5+ {[%clk 0:01:05.5]} 29.
Kd2 {[%clk 0:01:32.3]} 29... Nc5 {[%clk 0:01:01.9]} 30. Bg2 {[%clk 0:01:26.6]}
30... Ra2 {[%clk 0:00:55.3]} 31. Nb4 {[%clk 0:00:50.3]} 31... Rb2 {[%clk
0:00:52]} 32. Nd5 {[%clk 0:00:40.1]} 32... d3 {[%clk 0:00:50.2]} 33. Ne3 {[%clk
0:00:26.4]} 33... dxc2 {[%clk 0:00:45.1]} 34. Nxc2 {[%clk 0:00:24.1]} 34... Ncd3
{[%clk 0:00:31.6]} 35. Kc3 {[%clk 0:00:22.5]} 35... Rb1 {[%clk 0:00:25.3]} 36.
Ne3 {[%clk 0:00:21.5]} 36... Re1 {[%clk 0:00:19.2]} 37. Bf1 {[%clk 0:00:17.6]}
37... Rxe3 {[%clk 0:00:18]} 38. Kd4 {[%clk 0:00:18]} 38... Rf3 {[%clk
0:00:15.7]} 39. Bxd3 {[%clk 0:00:14.7]} 39... Rxf5 {[%clk 0:00:15.2]} 40. exf5
{[%clk 0:00:14.5]} 40... Ng4 {[%clk 0:00:13.2]} 41. h3 {[%clk 0:00:13.7]} 41...
Ne5 {[%clk 0:00:12.5]} 42. Be4 {[%clk 0:00:12.9]} 42... f6 {[%clk 0:00:12.6]}
43. g4 {[%clk 0:00:13.2]} 43... Nf7 {[%clk 0:00:11.8]} 44. h4 {[%clk 0:00:11.1]}
44... h6 {[%clk 0:00:10.5]} 45. Bf3 {[%clk 0:00:10.6]} 45... Ne5 {[%clk
0:00:10.7]} 46. Be2 {[%clk 0:00:11.1]} 46... Nc6+ {[%clk 0:00:10.5]} 47. Ke4
{[%clk 0:00:11.2]} 47... Kc5 {[%clk 0:00:10.5]} 48. Kf4 {[%clk 0:00:10.6]} 48...
Kd4 {[%clk 0:00:10.2]} 49. g5 {[%clk 0:00:10.7]} 49... Ne5 {[%clk 0:00:07.3]}
50. Bd1 {[%clk 0:00:10.1]} 50... Kd3 {[%clk 0:00:06.6]} 51. Ba4 {[%clk
0:00:07.5]} 51... Ke2 {[%clk 0:00:05.8]} 52. Bb5+ {[%clk 0:00:06.7]} 52... Kf2
{[%clk 0:00:06]} 53. Ba6 {[%clk 0:00:04.8]} 53... Kg2 {[%clk 0:00:06]} 54. gxh6
{[%clk 0:00:03]} 54... gxh6 {[%clk 0:00:05.6]} 55. Ke4 {[%clk 0:00:03.2]} 55...
Kg3 {[%clk 0:00:05.2]} 56. Kd5 {[%clk 0:00:04.1]} 56... Kxh4 {[%clk 0:00:05]}
57. Ke6 {[%clk 0:00:05]} 57... Kg5 {[%clk 0:00:05.4]} 58. Bb7 {[%clk 0:00:05.1]}
58... h5 {[%clk 0:00:05.6]} 59. Ba8 {[%clk 0:00:05.6]} 59... h4 {[%clk
0:00:06.1]} 60. Bb7 {[%clk 0:00:05.6]} 60... h3 {[%clk 0:00:06.5]} 61. Ba8
{[%clk 0:00:06.2]} 61... h2 {[%clk 0:00:06.8]} 62. Bb7 {[%clk 0:00:06.8]} 62...
Ng4 {[%clk 0:00:07]} 63. Ba8 {[%clk 0:00:07.4]} 63... Nf2 {[%clk 0:00:06.9]} 64.
Bb7 {[%clk 0:00:08]} 64... Nh3 {[%clk 0:00:06.9]} 65. Bh1 {[%clk 0:00:08.8]}
65... Nf4+ {[%clk 0:00:06.8]} 66. Kf7 {[%clk 0:00:07.8]} 66... Kxf5 {[%clk
0:00:07]} 67. Kg7 {[%clk 0:00:07.9]} 67... Kg5 {[%clk 0:00:07.3]} 68. Kf7 {[%clk
0:00:08.1]} 68... f5 {[%clk 0:00:07.7]} 69. Ke7 {[%clk 0:00:09]} 69... Nh5
{[%clk 0:00:07.9]} 70. Kd6 {[%clk 0:00:09.9]} 70... Ng3 {[%clk 0:00:08]} 71. Bg2
{[%clk 0:00:09.6]} 71... h1=Q {[%clk 0:00:07.9]} 72. Bxh1 {[%clk 0:00:09.4]}
72... Nxh1 {[%clk 0:00:08.2]} 73. Ke5 {[%clk 0:00:10.3]} 73... Kg4 {[%clk
0:00:08.2]} 74. Kd4 {[%clk 0:00:10.6]} 74... Kf3 {[%clk 0:00:08.5]} 0-1

[Event "Early-Titled-Tuesday-Blitz-April-16-2024"]
[Site "Chess.com"]
[Date "2024.04.16"]
[Round "3"]
[White "SpongeBob_03"]
[Black "Vesper2018"]
[Result "1/2-1/2"]
[WhiteElo "2239"]
[BlackElo "2552"]
[TimeControl "180+1"]
[EndTime "8:30:21 PDT"]
[Termination "Game drawn by repetition"]

1. e4 {[%clk 0:02:57.5]} 1... c5 {[%clk 0:02:59.5]} 2. Nf3 {[%clk 0:02:56.2]}
2... d6 {[%clk 0:02:59.2]} 3. Bb5+ {[%clk 0:02:56.3]} 3... Nd7 {[%clk 0:02:58]}
4. O-O {[%clk 0:02:44.2]} 4... a6 {[%clk 0:02:56.9]} 5. Bxd7+ {[%clk 0:02:44.1]}
5... Bxd7 {[%clk 0:02:54.6]} 6. Qe2 {[%clk 0:02:31.1]} 6... Nf6 {[%clk
0:02:50.9]} 7. d4 {[%clk 0:02:26.6]} 7... cxd4 {[%clk 0:02:48.1]} 8. Nxd4 {[%clk
0:02:27.5]} 8... g6 {[%clk 0:02:47.2]} 9. c4 {[%clk 0:02:27.3]} 9... Bg7 {[%clk
0:02:46.9]} 10. Be3 {[%clk 0:02:27.4]} 10... Nxe4 {[%clk 0:02:44.3]} 11. f3
{[%clk 0:02:22.8]} 11... Nf6 {[%clk 0:02:41.6]} 12. Nc3 {[%clk 0:02:22.5]} 12...
O-O {[%clk 0:02:41.6]} 13. Rfe1 {[%clk 0:02:21]} 13... Rc8 {[%clk 0:02:39.4]}
14. b3 {[%clk 0:02:14.7]} 14... b5 {[%clk 0:02:32.3]} 15. Rad1 {[%clk
0:02:02.5]} 15... bxc4 {[%clk 0:02:30.1]} 16. bxc4 {[%clk 0:02:03.4]} 16... e6
{[%clk 0:02:25.2]} 17. Nb3 {[%clk 0:02:00.2]} 17... Qc7 {[%clk 0:02:16.8]} 18.
c5 {[%clk 0:01:30.6]} 18... d5 {[%clk 0:02:05]} 19. Qxa6 {[%clk 0:01:27.6]}
19... Ra8 {[%clk 0:01:31.3]} 20. Qb6 {[%clk 0:01:02]} 20... Rfc8 {[%clk
0:01:28.2]} 21. Qxc7 {[%clk 0:00:59]} 21... Rxc7 {[%clk 0:01:28.3]} 22. Bf4
{[%clk 0:00:59.3]} 22... Rcc8 {[%clk 0:01:23.5]} 23. Be5 {[%clk 0:00:59.4]}
23... Ne8 {[%clk 0:01:15]} 24. f4 {[%clk 0:00:48.7]} 24... f6 {[%clk 0:01:05.8]}
25. Bd4 {[%clk 0:00:43.6]} 25... Kf7 {[%clk 0:01:04.9]} 26. Ra1 {[%clk
0:00:38.6]} 26... Ba4 {[%clk 0:00:56]} 27. Nd2 {[%clk 0:00:26]} 27... Bf8 {[%clk
0:00:53.8]} 28. Nxa4 {[%clk 0:00:16.3]} 28... Rxa4 {[%clk 0:00:53.5]} 29. Nb3
{[%clk 0:00:17.2]} 29... Ra3 {[%clk 0:00:46.7]} 30. Rec1 {[%clk 0:00:16.3]}
30... Nc7 {[%clk 0:00:45.4]} 31. Bb2 {[%clk 0:00:16]} 31... Ra4 {[%clk
0:00:44.8]} 32. Rc2 {[%clk 0:00:16.2]} 32... Rxf4 {[%clk 0:00:41.8]} 33. Rac1
{[%clk 0:00:16]} 33... Ra4 {[%clk 0:00:37.6]} 34. Rf1 {[%clk 0:00:13.3]} 34...
Be7 {[%clk 0:00:32.9]} 35. Ba1 {[%clk 0:00:11.9]} 35... f5 {[%clk 0:00:23.8]}
36. h3 {[%clk 0:00:11.8]} 36... Bf6 {[%clk 0:00:21.3]} 37. Bxf6 {[%clk 0:00:10]}
37... Kxf6 {[%clk 0:00:21.6]} 38. Re1 {[%clk 0:00:09.9]} 38... e5 {[%clk
0:00:17.9]} 39. Rd1 {[%clk 0:00:09.2]} 39... d4 {[%clk 0:00:17.8]} 40. c6 {[%clk
0:00:09.5]} 40... Rca8 {[%clk 0:00:13.9]} 41. Nc5 {[%clk 0:00:08]} 41... Rxa2
{[%clk 0:00:12.4]} 42. Nd7+ {[%clk 0:00:08.5]} 42... Ke6 {[%clk 0:00:10.9]} 43.
Rxa2 {[%clk 0:00:08.6]} 43... Rxa2 {[%clk 0:00:11]} 44. Nf8+ {[%clk 0:00:09.4]}
44... Ke7 {[%clk 0:00:10.7]} 45. Nxh7 {[%clk 0:00:10]} 45... Ne6 {[%clk
0:00:06.1]} 46. Rc1 {[%clk 0:00:07.6]} 46... Kd6 {[%clk 0:00:05]} 47. Nf6 {[%clk
0:00:06.7]} 47... Kc7 {[%clk 0:00:05.1]} 48. Ne8+ {[%clk 0:00:06.8]} 48... Kc8
{[%clk 0:00:05.4]} 49. Nd6+ {[%clk 0:00:06.7]} 49... Kd8 {[%clk 0:00:05.5]} 50.
Nf7+ {[%clk 0:00:05.4]} 50... Kc7 {[%clk 0:00:05.6]} 51. Nxe5 {[%clk 0:00:06.3]}
51... Re2 {[%clk 0:00:04.3]} 52. Nxg6 {[%clk 0:00:06.6]} 52... d3 {[%clk
0:00:03.7]} 53. Kf1 {[%clk 0:00:06.8]} 53... Ra2 {[%clk 0:00:03.8]} 54. Rd1
{[%clk 0:00:06.9]} 54... d2 {[%clk 0:00:03.8]} 55. Ne5 {[%clk 0:00:06.4]} 55...
Kd6 {[%clk 0:00:03.5]} 56. Nc4+ {[%clk 0:00:05]} 56... Kxc6 {[%clk 0:00:04]} 57.
Nxd2 {[%clk 0:00:05]} 57... Nd4 {[%clk 0:00:04.2]} 58. Nc4 {[%clk 0:00:03.3]}
58... Kd5 {[%clk 0:00:04]} 59. Ne3+ {[%clk 0:00:03.6]} 59... Ke4 {[%clk
0:00:04.4]} 60. Nc4 {[%clk 0:00:03.1]} 60... f4 {[%clk 0:00:04.2]} 61. Nd6+
{[%clk 0:00:03.4]} 61... Ke5 {[%clk 0:00:04.2]} 62. Nf7+ {[%clk 0:00:04.1]}
62... Ke4 {[%clk 0:00:04.3]} 63. Ng5+ {[%clk 0:00:04.5]} 63... Ke5 {[%clk
0:00:02.9]} 64. Nf7+ {[%clk 0:00:04.9]} 64... Ke4 {[%clk 0:00:03.5]} 65. Nd6+
{[%clk 0:00:05.6]} 65... Ke5 {[%clk 0:00:04.1]} 66. Nc4+ {[%clk 0:00:06]} 66...
Ke4 {[%clk 0:00:04.7]} 67. Nd6+ {[%clk 0:00:06.4]} 1/2-1/2

[Event "Early-Titled-Tuesday-Blitz-April-16-2024"]
[Site "Chess.com"]
[Date "2024.04.16"]
[Round "3"]
[White "BallottiLuca"]
[Black "B_nn_t"]
[Result "0-1"]
[WhiteElo "2380"]
[BlackElo "2542"]
[TimeControl "180+1"]
[EndTime "8:30:24 PDT"]
[Termination "B_nn_t won by checkmate"]

1. d4 {[%clk 0:03:00.9]} 1... Nf6 {[%clk 0:02:59.3]} 2. c4 {[%clk 0:03:01.8]}
2... e6 {[%clk 0:02:58.8]} 3. Nc3 {[%clk 0:03:01.6]} 3... Bb4 {[%clk 0:02:58.6]}
4. Qc2 {[%clk 0:02:59.8]} 4... O-O {[%clk 0:02:57.8]} 5. a3 {[%clk 0:02:59.2]}
5... Bxc3+ {[%clk 0:02:57.2]} 6. Qxc3 {[%clk 0:02:58.4]} 6... d5 {[%clk
0:02:57.8]} 7. Nf3 {[%clk 0:02:54.8]} 7... dxc4 {[%clk 0:02:57.7]} 8. Qxc4
{[%clk 0:02:54.1]} 8... b6 {[%clk 0:02:57.5]} 9. Bg5 {[%clk 0:02:53.3]} 9... Ba6
{[%clk 0:02:47.3]} 10. Qa4 {[%clk 0:02:52.2]} 10... h6 {[%clk 0:02:43.3]} 11.
Bh4 {[%clk 0:02:50.4]} 11... Qd7 {[%clk 0:02:29.8]} 12. Qc2 {[%clk 0:02:46.9]}
12... c5 {[%clk 0:02:03.7]} 13. dxc5 {[%clk 0:02:44.4]} 13... Nc6 {[%clk
0:02:03.7]} 14. Bxf6 {[%clk 0:02:36.8]} 14... gxf6 {[%clk 0:02:03.5]} 15. e3
{[%clk 0:02:30.5]} 15... Bxf1 {[%clk 0:02:02.9]} 16. Kxf1 {[%clk 0:02:29.6]}
16... bxc5 {[%clk 0:02:00.7]} 17. g3 {[%clk 0:02:29.9]} 17... Qd5 {[%clk
0:01:58.3]} 18. Kg2 {[%clk 0:02:25.5]} 18... Rac8 {[%clk 0:01:46.5]} 19. Rhd1
{[%clk 0:02:25.4]} 19... Qh5 {[%clk 0:01:42.8]} 20. Rac1 {[%clk 0:02:25.2]}
20... Ne5 {[%clk 0:01:41.5]} 21. Nxe5 {[%clk 0:02:21.6]} 21... Qxe5 {[%clk
0:01:42.4]} 22. Qc3 {[%clk 0:02:18.5]} 22... Qe4+ {[%clk 0:01:40.2]} 23. f3
{[%clk 0:02:11]} 23... Qg6 {[%clk 0:01:33.1]} 24. Rd7 {[%clk 0:02:09]} 24...
Rfd8 {[%clk 0:01:27.5]} 25. Rcd1 {[%clk 0:02:08.2]} 25... Rxd7 {[%clk
0:01:19.9]} 26. Rxd7 {[%clk 0:02:09.1]} 26... a6 {[%clk 0:01:18.8]} 27. Rd6
{[%clk 0:01:56]} 27... Qf5 {[%clk 0:01:15.5]} 28. e4 {[%clk 0:01:40.8]} 28...
Qg5 {[%clk 0:01:15.2]} 29. h4 {[%clk 0:01:32]} 29... Qg6 {[%clk 0:01:07.2]} 30.
Qd2 {[%clk 0:01:27.4]} 30... f5 {[%clk 0:01:05.9]} 31. e5 {[%clk 0:01:21.6]}
31... Kh7 {[%clk 0:01:01.1]} 32. Qf4 {[%clk 0:01:10.1]} 32... Rb8 {[%clk
0:00:58.7]} 33. Rd2 {[%clk 0:01:06.5]} 33... Rb5 {[%clk 0:00:52.4]} 34. Kh3
{[%clk 0:01:06.2]} 34... c4 {[%clk 0:00:51.6]} 35. Rc2 {[%clk 0:01:02]} 35...
Qg7 {[%clk 0:00:50.8]} 36. Re2 {[%clk 0:00:49.4]} 36... Rd5 {[%clk 0:00:49.1]}
37. Qxc4 {[%clk 0:00:39.2]} 37... Rxe5 {[%clk 0:00:48.4]} 38. Rxe5 {[%clk
0:00:32.5]} 38... Qxe5 {[%clk 0:00:49.3]} 39. Qc3 {[%clk 0:00:24.2]} 39... Qe2
{[%clk 0:00:45.4]} 40. f4 {[%clk 0:00:14.6]} 40... Qe4 {[%clk 0:00:42.6]} 41.
Kh2 {[%clk 0:00:13.7]} 41... Qe2+ {[%clk 0:00:42.5]} 42. Kg1 {[%clk 0:00:13.4]}
42... Kg6 {[%clk 0:00:41.3]} 43. b4 {[%clk 0:00:12.9]} 43... Kh5 {[%clk
0:00:33.8]} 44. Kh1 {[%clk 0:00:12.2]} 44... Kg4 {[%clk 0:00:32.3]} 45. Kg1
{[%clk 0:00:02.1]} 45... Kh3 {[%clk 0:00:27.8]} 46. g4+ {[%clk 0:00:03]} 46...
Kxg4 {[%clk 0:00:28.3]} 47. h5 {[%clk 0:00:02.4]} 47... Qd1+ {[%clk 0:00:25.9]}
48. Kf2 {[%clk 0:00:02.5]} 48... Kxh5 {[%clk 0:00:21.6]} 49. Qh3+ {[%clk
0:00:02.5]} 49... Kg6 {[%clk 0:00:21.7]} 50. Qg3+ {[%clk 0:00:02.7]} 50... Kf6
{[%clk 0:00:21.7]} 51. Qh4+ {[%clk 0:00:02.7]} 51... Kg7 {[%clk 0:00:22.3]} 52.
Qg3+ {[%clk 0:00:02.8]} 52... Kf8 {[%clk 0:00:22.4]} 53. Qc3 {[%clk 0:00:03]}
53... Qd5 {[%clk 0:00:21.5]} 54. Qc8+ {[%clk 0:00:02.8]} 54... Kg7 {[%clk
0:00:20.8]} 55. Qc3+ {[%clk 0:00:02.8]} 55... Kg6 {[%clk 0:00:20.7]} 56. Qg3+
{[%clk 0:00:02.9]} 56... Kf6 {[%clk 0:00:21.2]} 57. Qc3+ {[%clk 0:00:03.5]}
57... Kg6 {[%clk 0:00:21]} 58. Qg3+ {[%clk 0:00:03.6]} 58... Kh7 {[%clk
0:00:21.6]} 59. Qf3 {[%clk 0:00:03]} 59... Qd2+ {[%clk 0:00:21.3]} 60. Kg3
{[%clk 0:00:03.1]} 60... Qe1+ {[%clk 0:00:20.8]} 61. Kg2 {[%clk 0:00:03.2]}
61... Qd2+ {[%clk 0:00:20.8]} 62. Kg3 {[%clk 0:00:03.7]} 62... Qd6 {[%clk
0:00:21.1]} 63. Qe3 {[%clk 0:00:03.3]} 63... f6 {[%clk 0:00:21.4]} 64. Qc3
{[%clk 0:00:02.5]} 64... e5 {[%clk 0:00:21.5]} 65. fxe5 {[%clk 0:00:02.5]} 65...
fxe5 {[%clk 0:00:22.4]} 66. a4 {[%clk 0:00:02.4]} 66... e4+ {[%clk 0:00:22.5]}
67. Kf2 {[%clk 0:00:02.6]} 67... Kg6 {[%clk 0:00:22.2]} 68. Qg3+ {[%clk
0:00:02]} 68... Qxg3+ {[%clk 0:00:22.2]} 69. Kxg3 {[%clk 0:00:02.9]} 69... Kf6
{[%clk 0:00:23.1]} 70. a5 {[%clk 0:00:01.6]} 70... Ke6 {[%clk 0:00:23.3]} 71.
Kf4 {[%clk 0:00:02.2]} 71... Kd6 {[%clk 0:00:23.5]} 72. Kxf5 {[%clk 0:00:02.2]}
72... e3 {[%clk 0:00:23.9]} 73. b5 {[%clk 0:00:02.8]} 73... axb5 {[%clk
0:00:24]} 74. a6 {[%clk 0:00:03.7]} 74... Kc6 {[%clk 0:00:24.6]} 75. Kg6 {[%clk
0:00:03.9]} 75... Kb6 {[%clk 0:00:25]} 76. Kxh6 {[%clk 0:00:04.8]} 76... Kxa6
{[%clk 0:00:25.1]} 77. Kg6 {[%clk 0:00:05.5]} 77... e2 {[%clk 0:00:26]} 78. Kg5
{[%clk 0:00:06.4]} 78... e1=Q {[%clk 0:00:26.7]} 79. Kf4 {[%clk 0:00:07.3]}
79... b4 {[%clk 0:00:27]} 80. Kf3 {[%clk 0:00:08.2]} 80... b3 {[%clk 0:00:27.9]}
81. Kg4 {[%clk 0:00:09.1]} 81... b2 {[%clk 0:00:28.7]} 82. Kf4 {[%clk 0:00:10]}
82... b1=Q {[%clk 0:00:29.3]} 83. Kf3 {[%clk 0:00:10.9]} 83... Qc2 {[%clk
0:00:29.5]} 84. Kg4 {[%clk 0:00:11.8]} 84... Qcf2 {[%clk 0:00:29.4]} 85. Kh3
{[%clk 0:00:11.7]} 85... Qee3+ {[%clk 0:00:29.1]} 86. Kg4 {[%clk 0:00:11.5]}
86... Qff4+ {[%clk 0:00:30]} 87. Kh5 {[%clk 0:00:11.6]} 87... Qee5+ {[%clk
0:00:30.9]} 88. Kg6 {[%clk 0:00:12.3]} 88... Qff6+ {[%clk 0:00:31.6]} 89. Kh7
{[%clk 0:00:13.2]} 89... Qee7+ {[%clk 0:00:32.2]} 90. Kg8 {[%clk 0:00:14.1]}
90... Qff8# {[%clk 0:00:32.9]} 0-1

[Event "Early-Titled-Tuesday-Blitz-April-16-2024"]
[Site "Chess.com"]
[Date "2024.04.16"]
[Round "3"]
[White "Rawnsdale"]
[Black "milovichalex"]
[Result "0-1"]
[WhiteElo "2504"]
[BlackElo "2327"]
[TimeControl "180+1"]
[EndTime "8:30:24 PDT"]
[Termination "milovichalex won by checkmate"]

1. e4 {[%clk 0:03:00.9]} 1... e5 {[%clk 0:02:59.9]} 2. Nf3 {[%clk 0:03:01]} 2...
Nc6 {[%clk 0:02:59.5]} 3. Bb5 {[%clk 0:03:01.7]} 3... a6 {[%clk 0:02:59.3]} 4.
Ba4 {[%clk 0:03:01.9]} 4... Nf6 {[%clk 0:02:59.5]} 5. O-O {[%clk 0:03:01.5]}
5... Be7 {[%clk 0:03:00]} 6. Re1 {[%clk 0:03:01.3]} 6... b5 {[%clk 0:03:00.6]}
7. Bb3 {[%clk 0:03:01.5]} 7... O-O {[%clk 0:03:01.5]} 8. c3 {[%clk 0:03:01.5]}
8... d5 {[%clk 0:03:02]} 9. d4 {[%clk 0:02:56.8]} 9... dxe4 {[%clk 0:02:58.6]}
10. Nxe5 {[%clk 0:02:56.7]} 10... Nxe5 {[%clk 0:02:57.6]} 11. dxe5 {[%clk
0:02:57.6]} 11... Qxd1 {[%clk 0:02:57]} 12. Bxd1 {[%clk 0:02:53.6]} 12... Nd7
{[%clk 0:02:42.2]} 13. Rxe4 {[%clk 0:02:52.9]} 13... Nc5 {[%clk 0:02:39.4]} 14.
Re2 {[%clk 0:02:45.3]} 14... Bg4 {[%clk 0:02:33.8]} 15. f3 {[%clk 0:02:44.7]}
15... Rad8 {[%clk 0:02:24.6]} 16. Bc2 {[%clk 0:02:41.4]} 16... Bf5 {[%clk
0:02:07.3]} 17. Na3 {[%clk 0:02:18.7]} 17... Bxc2 {[%clk 0:02:04.5]} 18. Nxc2
{[%clk 0:02:18.4]} 18... Rd1+ {[%clk 0:02:03.2]} 19. Re1 {[%clk 0:02:16]} 19...
Rfd8 {[%clk 0:01:53.5]} 20. Be3 {[%clk 0:02:08.4]} 20... Rxa1 {[%clk 0:01:47.1]}
21. Rxa1 {[%clk 0:02:07]} 21... Nd3 {[%clk 0:01:42.7]} 22. Nd4 {[%clk
0:01:49.2]} 22... Nxb2 {[%clk 0:01:23.7]} 23. Nc6 {[%clk 0:01:46.3]} 23... Re8
{[%clk 0:01:23.3]} 24. Rb1 {[%clk 0:01:23.2]} 24... Nc4 {[%clk 0:01:17.3]} 25.
Kf2 {[%clk 0:01:22.9]} 25... Bf8 {[%clk 0:00:52.6]} 26. f4 {[%clk 0:01:12.6]}
26... f6 {[%clk 0:00:47.2]} 27. Bd4 {[%clk 0:00:55.1]} 27... Re6 {[%clk
0:00:46.9]} 28. Nd8 {[%clk 0:00:49.6]} 28... Re8 {[%clk 0:00:44.3]} 29. Nc6
{[%clk 0:00:49.2]} 29... Re6 {[%clk 0:00:43.9]} 30. Na7 {[%clk 0:00:28.9]} 30...
fxe5 {[%clk 0:00:42.4]} 31. fxe5 {[%clk 0:00:27.3]} 31... Nxe5 {[%clk 0:00:39]}
32. a4 {[%clk 0:00:25.5]} 32... Nd3+ {[%clk 0:00:33.2]} 33. Kf3 {[%clk
0:00:23.4]} 33... c5 {[%clk 0:00:33.2]} 34. Bg1 {[%clk 0:00:22.5]} 34... bxa4
{[%clk 0:00:32.4]} 35. Nc8 {[%clk 0:00:16.9]} 35... a3 {[%clk 0:00:30.3]} 36.
Ra1 {[%clk 0:00:16.8]} 36... c4 {[%clk 0:00:30.3]} 37. Bd4 {[%clk 0:00:15.7]}
37... Re1 {[%clk 0:00:29]} 38. Ra2 {[%clk 0:00:15.5]} 38... Nc1 {[%clk
0:00:27.3]} 39. Ra1 {[%clk 0:00:13.6]} 39... a2 {[%clk 0:00:26.3]} 40. Bf2
{[%clk 0:00:12.3]} 40... Rf1 {[%clk 0:00:25.4]} 41. g3 {[%clk 0:00:11.5]} 41...
Bc5 {[%clk 0:00:23.8]} 42. Ke4 {[%clk 0:00:09.8]} 42... Bxf2 {[%clk 0:00:20.6]}
43. Kd5 {[%clk 0:00:09.9]} 43... Bg1 {[%clk 0:00:17.4]} 44. Kxc4 {[%clk
0:00:09.5]} 44... Bxh2 {[%clk 0:00:16.4]} 45. g4 {[%clk 0:00:08.9]} 45... Be5
{[%clk 0:00:16.1]} 46. Ne7+ {[%clk 0:00:08.6]} 46... Kf7 {[%clk 0:00:16]} 47.
Nd5 {[%clk 0:00:09.3]} 47... Ke6 {[%clk 0:00:16.3]} 48. Ne3 {[%clk 0:00:09]}
48... Re1 {[%clk 0:00:16.7]} 49. Nd5 {[%clk 0:00:08.3]} 49... Re4+ {[%clk
0:00:16.3]} 50. Kc5 {[%clk 0:00:07.2]} 50... Re1 {[%clk 0:00:15.3]} 51. Kc4
{[%clk 0:00:03.6]} 51... Re4+ {[%clk 0:00:14.3]} 52. Kc5 {[%clk 0:00:03.6]}
52... Nd3+ {[%clk 0:00:14.3]} 53. Kc6 {[%clk 0:00:03.1]} 53... Rc4+ {[%clk
0:00:13.6]} 54. Kb6 {[%clk 0:00:02.8]} 54... Kxd5 {[%clk 0:00:13.3]} 55. Rxa2
{[%clk 0:00:03.7]} 55... Bd6 {[%clk 0:00:12.8]} 56. Kxa6 {[%clk 0:00:04]} 56...
Nc5+ {[%clk 0:00:11.7]} 57. Kb6 {[%clk 0:00:03.4]} 57... Rxc3 {[%clk 0:00:12.6]}
58. Rh2 {[%clk 0:00:03.2]} 58... h6 {[%clk 0:00:12.2]} 59. Rh5+ {[%clk
0:00:03.3]} 59... Kc4 {[%clk 0:00:12]} 60. g5 {[%clk 0:00:03.9]} 60... Rb3+
{[%clk 0:00:11.3]} 61. Kc6 {[%clk 0:00:04.1]} 61... Bf4 {[%clk 0:00:11.3]} 62.
g6 {[%clk 0:00:04]} 62... Be3 {[%clk 0:00:11.2]} 63. Kd6 {[%clk 0:00:03.4]}
63... Bd4 {[%clk 0:00:11.2]} 64. Ke7 {[%clk 0:00:02.7]} 64... Rb7+ {[%clk
0:00:11.1]} 65. Kd6 {[%clk 0:00:02.8]} 65... Rb6+ {[%clk 0:00:10.4]} 66. Ke7
{[%clk 0:00:02.4]} 66... Rxg6 {[%clk 0:00:10.9]} 67. Kf8 {[%clk 0:00:01.9]}
67... Rg5 {[%clk 0:00:10.8]} 68. Rh4 {[%clk 0:00:02.1]} 68... Kd5 {[%clk
0:00:10.5]} 69. Kg8 {[%clk 0:00:02.2]} 69... Ke6 {[%clk 0:00:10.3]} 70. Kh7
{[%clk 0:00:02.8]} 70... Ke5 {[%clk 0:00:10.3]} 71. Kh8 {[%clk 0:00:02.7]} 71...
Ne6 {[%clk 0:00:10.9]} 72. Kh7 {[%clk 0:00:03.2]} 72... Kf6 {[%clk 0:00:10.9]}
73. Re4 {[%clk 0:00:02.8]} 73... Be5 {[%clk 0:00:11.2]} 74. Re3 {[%clk
0:00:02.4]} 74... Kf7 {[%clk 0:00:11.5]} 75. Rf3+ {[%clk 0:00:02.3]} 75... Bf6
{[%clk 0:00:12.1]} 76. Kh8 {[%clk 0:00:02.1]} 76... Rc5 {[%clk 0:00:12.4]} 77.
Kh7 {[%clk 0:00:01.9]} 77... Ng5+ {[%clk 0:00:12.8]} 78. Kh8 {[%clk 0:00:01.6]}
78... Rc8# {[%clk 0:00:13.7]} 0-1